Cogmind - Beta 15 @@@ ROGUE MODE // 2025.10.21 @ 02:05:55 Player: mehbruh Result: Destroyed by PU-KTO(R) with Subdweller Laser Performance ------------- Evolutions (0) 0 Regions Visited (2) 400 Robots Destroyed (27) 135 Value Destroyed (479) 479 Prototype IDs (0) 0 Alien Tech Used (0) 0 Bonus (0) 0 TOTAL SCORE: 1014 Bonus ------- None Cogmind --------- Core Integrity 0/250 Matter 274/300 Energy 97/125 System Corruption 0% Temperature Cool (6) Movement Treading (160) Location -10/Subcaves Parts ------- > --- POWER (1) -------- Light Ion Engine > --- PROPULSION (2) --- Light Treads Light Treads > --- UTILITY (2) ------ Scrap Shield > --- WEAPON (2) ------- Beam Rifle Beam Rifle > --- INVENTORY (5) ---- Subdweller Power Source Light Treads Large Storage Unit Medium Laser Subdweller Machine Gun Peak State ------------ > --- POWER ------------ Ion Engine > --- PROPULSION ------- Light Treads Light Treads > --- UTILITY ---------- Cooling System Small Storage Unit > --- WEAPON ----------- Beam Rifle Beam Rifle > --- INVENTORY -------- Wheel Cooling System Seismic Detector Targeting Computer Heavy EM Pulse Gun Heavy EM Pulse Gun Heavy EM Pulse Gun Heavy EM Pulse Gun [Rating: 11] Favorites ----------- Power Ion Engine Engine Ion Engine Propulsion Light Treads Treads Light Treads Utility Large Storage Unit Device Seismic Detector Storage Large Storage Unit Protection Scrap Shield Weapon Heavy EM Pulse Gun Energy Gun Heavy EM Pulse Gun Ballistic Gun Light Assault Rifle Build | -11 -10 -10 ------- Run | Yrd Mat Sub Slots Evolved . | . . . Power . | . . . Propulsion . | . . . Utility . | . . . Weapon . | . . . Parts Attached 25 | 7 11 7 Power 2 | 1 . 1 Engine 2 | 1 . 1 Core . | . . . Reactor . | . . . Propulsion 3 | 2 1 . Treads 3 | 2 1 . Leg . | . . . Wheel . | . . . Hover . | . . . Flight . | . . . Utility 7 | 2 3 2 Device 4 | 1 2 1 Storage 2 | 1 1 . Processor . | . . . Hackware . | . . . Protection 1 | . . 1 Artifact . | . . . Weapon 13 | 2 7 4 Energy Gun 10 | . 7 3 Energy Cannon . | . . . Ballistic Gun 3 | 2 . 1 Ballistic Cannon . | . . . Launcher . | . . . Special Weapon . | . . . Impact Weapon . | . . . Slashing Weapon . | . . . Piercing Weapon . | . . . Special Melee Weapon . | . . . Unidentified Prototypes . | . . . Parts Lost 6 | . 2 4 Power 1 | . . 1 Propulsion 1 | . . 1 Utility 1 | . 1 . Weapon 3 | . 1 2 Highest Loss Streak 4 | . 2 4 To Critical Strikes . | . . . Average Backups 10 | 4 10 13 Power . | . . 1 Propulsion 1 | 2 1 1 Utility 4 | . 4 5 Weapon 4 | . 4 5 Tool/Special . | . . . Unused Backups 16 | . 8 8 Power 3 | . 1 2 Propulsion 6 | . 4 2 Utility 4 | . . 4 Weapon 3 | . 3 . Tool/Special . | . . . Average Slot Usage (%) 99 | . 99 98 Engine 14 | . 14 14 Treads 28 | . 28 28 Device 13 | . 13 12 Storage 13 | . 14 12 Energy Gun 24 | . 22 27 Ballistic Gun 3 | . 5 . Peak Build Rating 11 | 7 11 11 Average Rating 9 | 4 10 10 On Entrance 5 | . 7 9 Naked Turns . | . . . Heaviest Build 33 | 14 33 32 Greatest Support 40 | 40 40 40 Greatest Overweight (x) . | . . . Average Overweight (x) . | . . . Largest Inventory Capacity 15 | 8 15 15 Average Capacity 12 | 6 11 13 Most Carried 15 | 6 15 15 Average Carried 10 | 4 10 13 Final Capacity 15 | 8 15 5 Final Carried 15 | 6 15 5 Class Distribution -------------------- 100% | Mutant Dominant Class ---------------- Mutant | -10/Materials Mutant | -10/Subcaves Resources | -11 -10 -10 ----------- Run | Yrd Mat Sub Matter Collected 777 | 226 349 202 Remotely . | . . . Salvage Created 947 | 24 646 277 Parts 62 | 5 43 14 Haulers Intercepted 2 | . 2 . Recyclers Shooed 1 | . 1 . Parts Field Recycled . | . . . Retrieved Matter . | . . . Parts Self-Destructed 10 | . . 10 Prevented 1 | . . 1 Kills | -11 -10 -10 ------- Run | Yrd Mat Sub Combat Hostiles Destroyed 19 | . 16 3 Guns 19 | . 16 3 Classes Destroyed 8 | 1 5 2 Worker 2 | . 2 . Tunneler 3 | 1 2 . Hauler 2 | . 2 . Watcher 1 | . 1 . Swarmer 10 | . 9 1 Grunt 7 | . 7 . Sentry 1 | . . 1 Subdweller 1 | . . 1 Best Kill Streak 6 | 1 6 2 Combat Bots Only 6 | . 6 2 Max Kills in Single Turn 2 | 1 2 1 Gunslinging . | . . . Exploded . | . . . Melee . | . . . Uniques/NPCs Destroyed . | . . . Combat | -11 -10 -10 -------- Run | Yrd Mat Sub Hostile Shots Fired 132 | . 100 32 Missed 26 | . 22 4 Hits 106 | . 78 28 Projectile 106 | . 78 28 Critical Strikes 2 | . 2 . Damage Taken 1218 | . 786 432 Core 253 | . 152 101 Absorbed by Shields . | . . . Regen/Repaired (Parts) 138 | . 138 . Core Remaining (%) 100 | 100 . . Volleys Fired 100 | 1 68 31 Largest 2 | 2 2 2 Hottest 112 | 40 112 112 Shots Fired 192 | 2 136 54 Gun 192 | 2 136 54 Cannon . | . . . Launcher . | . . . Special . | . . . Kinetic 58 | 2 48 8 Thermal 84 | . 46 38 Explosive . | . . . Electromagnetic 50 | . 42 8 Robot Hit Streak 17 | 2 9 17 Robot Miss Streak 9 | . 9 3 Penetration Max . | . . . Secondary Targets 1 | . 1 . Max Gunslinging Chain 1 | . 1 . Shots Hit Robots 112 | 2 74 36 Core Hits 45 | 2 31 12 Critical Kills 1 | . 1 . Critical Parts Destroyed . | . . . Critical Strikes 6 | . 4 2 Burn 5 | . 3 2 Destroy 1 | . 1 . Melee Attacks . | . . . Impact . | . . . Slashing . | . . . Piercing . | . . . Sneak Attacks . | . . . Combat Hostiles . | . . . Follow-up Attacks . | . . . Damage Inflicted 1487 | 18 1020 449 Guns 1415 | 18 948 449 Cannons . | . . . Explosions 34 | . 34 . Melee . | . . . Ramming 38 | . 38 . Kinetic 383 | 18 365 . Thermal 682 | . 301 381 Explosive . | . . . Electromagnetic 384 | . 316 68 Impact . | . . . Slashing . | . . . Piercing . | . . . Highest Corruption . | . . . Average Corruption . | . . . Corruption Purged . | . . . Corruption Blocked . | . . . Overload Shots . | . . . Overflow Damage . | . . . Projectiles . | . . . Explosions . | . . . Melee . | . . . Knockbacks . | . . . Impact . | . . . Kinetic . | . . . Secondary . | . . . Self-Inflicted Damage 40 | . 40 . Shots 1 | . 1 . Rammed 5 | . 5 . Targets Rammed 6 | . 6 . Kicked . | . . . Crushed 1 | . 1 . Highest Temperature 112 | . 112 3 Average Temperature 35 | . 37 2 Received Heat Transfer 294 | . 183 111 Siege Activations . | . . . Martial Activations . | . . . Shielding Activations . | . . . Robots Disrupted . | . . . Combat Hostiles . | . . . Robots Corrupted . | . . . Combat Hostiles . | . . . Parts Fried 5 | . 4 1 Impact Corruptions . | . . . Robots Melted . | . . . Combat Hostiles . | . . . Parts Melted 3 | . 2 1 Heat Transferred 2233 | . 975 1258 Parts Sabotaged . | . . . Parts Stolen . | . . . Parts Stripped . | . . . Power Chain Reactions 1 | . 1 . Alert | -11 -10 -10 ------- Run | Yrd Mat Sub Maximum Alert Level . | . . . Low Security (%) 100 | 100 100 . Level 1 . | . . . Level 2 . | . . . Level 3 . | . . . Level 4 . | . . . Level 5 . | . . . High Security . | . . . Max Security . | . . . Peak Influence 155 | 5 155 . Initial . | . . . Average 23 | . 24 . Influence Increases 533 | 5 488 40 Destroy 0b10 Robot/C 360 | . 320 40 Destroy 0b10 Robot/NC 40 | 5 35 . Destroy Leader 76 | . 76 . Successful Hack 9 | . 9 . Destroy Structure 3 | . 3 . Lose Combat Pursuer 45 | . 45 . Influence Decreases 533 | 5 486 42 Entered New Map 2 | . . 2 Time Decay 368 | 5 323 40 Lost Part 20 | . 20 . Purge Threat 143 | . 143 . Squads Dispatched 3 | . 3 . Investigation 3 | . 3 . Extermination . | . . . Reinforcement . | . . . Assault . | . . . Garrison . | . . . Intercept . | . . . Searches Triggered . | . . . Construction Impeded . | . . . Haulers Reinforced . | . . . Active Scanning Responses . | . . . Cargo Convoy Interrupts . | . . . Stealth | -11 -10 -10 --------- Run | Yrd Mat Sub Distress Signals 3 | . 3 . Communications Jammed . | . . . Distress Signals . | . . . Times Spotted 32 | . 28 4 Peak Tracking Total 4 | . 4 2 Tactical Retreats 2 | . 2 . Traps | -11 -10 -10 ------- Run | Yrd Mat Sub Traps Triggered 3 | . 3 . Indirectly . | . . . Trap Hack Attempts . | . . . Triggered . | . . . Disarmed . | . . . Reprogrammed . | . . . Reused . | . . . Traps Extracted . | . . . Installed . | . . . Triggered . | . . . Machines | -11 -10 -10 ---------- Run | Yrd Mat Sub Machines Disabled . | . . . Max in Single Turn . | . . . Machines Repaired . | . . . Machines Dismantled . | . . . Machines Sabotaged . | . . . Overloaded Fab Kills . | . . . Hacking | -11 -10 -10 --------- Run | Yrd Mat Sub Machines Accessed 8 | . 7 1 Terminals 6 | . 6 . Fabricators . | . . . Repair Stations 1 | . 1 . Recycling Units . | . . . Scanalyzers . | . . . Garrison Access . | . . . Total Hacks 22 | . 17 5 Successful 11 | . 6 5 Failed 11 | . 11 . Catastrophic 2 | . 2 . Database Lockouts . | . . . Manual 12 | . 12 . Terminals 14 | . 14 . Fabricators . | . . . Repair Stations 3 | . 3 . Recycling Units . | . . . Scanalyzers . | . . . Garrison Access . | . . . Terminal Hacks 9 | . 4 5 Record 5 | . . 5 Robot Analysis 2 | . 2 . Alert Level 1 | . 1 . Unreport Threat 1 | . 1 . Fabricator Hacks . | . . . Repair Station Hacks 2 | . 2 . Scan Component 1 | . 1 . Repair 1 | . 1 . Recycling Unit Hacks . | . . . Scanalyzer . | . . . Garrison Access Hacks . | . . . Unauthorized Hacks . | . . . Terminals . | . . . Fabricators . | . . . Repair Stations . | . . . Recycling Units . | . . . Scanalyzers . | . . . Garrison Access . | . . . Data Cores Recovered . | . . . Used . | . . . Hacking Detections 6 | . 6 . Full Trace Events . | . . . Feedback Events . | . . . Feedback Blocked . | . . . Robot Schematics Acquired . | . . . Robots Built . | . . . Authchips . | . . . Time . | . . . Total Robot Build Rating . | . . . Part Schematics Acquired . | . . . Parts Built . | . . . Authchips . | . . . Time . | . . . Total Part Build Rating . | . . . Parts Repaired 1 | . 1 . Time 26 | . 26 . Parts Recycled . | . . . Recycled Matter . | . . . Retrieved Matter . | . . . Retrieved Components . | . . . Parts Scanalyzed . | . . . Part Schematics Acquired . | . . . Parts Damaged . | . . . Bothacking | -11 -10 -10 ------------ Run | Yrd Mat Sub Used RIF Installer . | . . . Robots Hacked . | . . . Non-combat . | . . . Combat . | . . . Robot Hacks Applied . | . . . Relay Couplers Released . | . . . Fabnet Peak Effective % . | . . . Robots Rewired . | . . . Allies Hacked . | . . . Hacks Repelled . | . . . Allies | -11 -10 -10 -------- Run | Yrd Mat Sub Total Allies . | . . . Largest Group . | . . . Highest-Rated Group . | . . . Highest-Rated Ally . | . . . Total Orders . | . . . Ally Attacks . | . . . Total Damage . | . . . Kills . | . . . Allies Corrupted . | . . . Allies Melted . | . . . Intel | -11 -10 -10 ------- Run | Yrd Mat Sub Active Infowar (turns) 1306 | 19 1043 244 Seismic 1306 | 19 1043 244 Robot Analysis Total 2 | . 2 . Derelict Logs Recovered 1 | . . 1 Drone Launches . | . . . Drone Recoveries . | . . . Exploration | -11 -10 -10 ------------- Run | Yrd Mat Sub Turns Passed 2806 | 91 1799 916 Spaces Moved 1477 | 47 932 498 Core 3 | 3 . . Treads 1474 | 44 932 498 Legs . | . . . Wheels . | . . . Hover . | . . . Flight . | . . . Fastest Speed 50 | 50 160 160 Average Speed 159 | 152 160 160 Slowest Speed 160 | 160 160 160 Overloaded Moves . | . . . Propulsion Burnouts . | . . . Robots Hopped . | . . . Potential Cave-ins . | . . . Cave-ins Triggered . | . . . Exploration Rate (%) 45 | 4 98 35 Regions Visited 2 Branch Regions 1 Pre-discovered Areas 2 | . . 2 Known Exits Taken . | . . . Unknown Exits Taken 2 | 1 1 . Scrap Searched . | . . . Spaces Dug . | . . . Terrain Destroyed 3 | . 3 . Melee . | . . . Projectile . | . . . AOE 3 | . 3 . Terrain Rammed . | . . . Walls Destroyed . | . . . Machines Disabled . | . . . Actions | -11 -10 -10 --------- Run | Yrd Mat Sub Total 1730 | 61 1106 563 Wait 56 | 1 50 5 Move 1475 | 46 931 498 Hop . | . . . Pick Up 36 | 6 23 7 Fast Attach 10 | 7 1 2 Attach 6 | . 2 4 Detach . | . . . Swap 21 | . 12 9 Drop 19 | . 13 6 Fire 100 | 1 68 31 Melee . | . . . Ram . | . . . Kick . | . . . Crush 6 | . 6 . Escape Stasis . | . . . Rewire . | . . . Trap . | . . . Miscellaneous 1 | . . 1 Route ------- -11/Scrapyard -10/Materials (discovered 5 exits: [*Mat x3] / [*Min] / *Sub) -10/Subcaves (discovered 1 exit: [*Mat]) History --------- Turn | Location | Event 23 | -11/Scrapyard | Discovered new exit (range 15) 92 | -11/Scrapyard | Entered Materials 306 | -10/Materials | Build established: Mutant 897 | -10/Materials | Discovered new exit (range 16) 1098 | -10/Materials | Discovered new exit (range 11) 1197 | -10/Materials | Core integrity fell below 50% 1526 | -10/Materials | Discovered new exit (range 5) 1626 | -10/Materials | Discovered new exit (range 16) 1721 | -10/Materials | Repaired Lgt. Treads 1882 | -10/Materials | Discovered new exit (range 6) 1891 | -10/Materials | Entered Subcaves 1892 | -10/Subcaves | Approached by a straggling Scientist 1907 | -10/Subcaves | Learned location of Zion (-7) 2098 | -10/Subcaves | Visited Clippyterm 2102 | -10/Subcaves | Learned Factory fabricator intel 2102 | -10/Subcaves | Learned 40 Factory zone layouts 2172 | -10/Subcaves | Lost 4 parts (1p1n2w) 2270 | -10/Subcaves | Met a Zionite searching for "candidates" 2382 | -10/Subcaves | Discovered new exit (range 15) 2716 | -10/Subcaves | Core integrity fell below 20% 2807 | -10/Subcaves | Destroyed by PU-KTO(R) with Subdweller Laser Last Messages --------------- 02708_ Dropped Lrg. Storage Unit. 02711_ Acquired Scrap Shield. 02714_ Acquired 10 matter. 02720_ C5-D70(R) heat short circuits Sub. Beam Cannon. 02724_ C5-D70(R) suffers critical hit (Burn). 02724_ Broken Sub. Beam Cannon melted. 02724_ C5-D70(R) destroyed. 02727_ Scrap Shield Fragment affixed to Scrap Shield (+37). 02729_ Dropped Sub. Monowheel. 02730_ Acquired Lgt. Treads. 02732_ Acquired 10 matter. 02735_ Dropped Med. Laser. 02736_ Acquired Beam Rifle. 02737_ Acquired 10 matter. 02773_ Dropped Cooling System. 02773_ Acquired Lrg. Storage Unit. 02781_ Subatomizers dissect the Seismic Detector. Map ----- +----------------------------------------------------+ | ???????# ##?# #??????????????? | | #####??## # # #?##" #??????????????? | | ##?## #########" #??????????????? | | #?# # # ## " #??????????????? | | #### #??????????????? | | ## # ## ## "#??????????????? | | ### ## #######?## #??????????????? | | ##?# #???????# #??????????????? | | #??# ##???????# ! #??????????????? | | ???# #####????????##%= #??????????????? | | ???#####?????????????#=* #??????????????? | | ?????????????????????# ## ##??????????????? | | ?????????????????????## #####???????????????? | | ?????????????????????##%!##?????????????????? | | ????????????????????##[ ! #?????????????????? | | ????????????????????#![%=#####??????????????? | | ????????????????????#! =!## #??????????????? | | ????????????????????##![*[ #??????????????? | | ?????????????????????####! #??????????????? | | ???????????????????????## ##??????????????? | | ???????????????????????# & ##???????????????? | | ???????????????????????##% #????????????????? | | ???????????????????????##! ####?????????????? | | ???????????????????????# """ #?????????????? | | ???????????????????????## """ #?????????????? | | ????????????????????????#@""" #?????????????? | | ??????????????????????? R"""" #?????????????? | | ????????????????????? " """"" #?????????????? | | ???????????????????# """""" ##?????????????? | | ?????????????????? """"" ####??????????????? | | ????????????????#""###"" #?????????????????? | | ????????????????#?????# ""#?????????????????? | | ????????????????????????""#?????????????????? | | ????????????????????????????????????????????? | | ????????????????????????????????????????????? | | ????????????????????????????????????????????? | | ????????????????????????????????????????????? | | ????????????????????????????????????????????? | | ????????????????????????????????????????????? | | ????????????????????????????????????????????? | | ????????????????????????????????????????????? | | ????????????????????????????????????????????? | | ????????????????????????????????????????????? | | ????????????????????????????????????????????? | | ????????????????????????????????????????????? | | ????????????????????????????????????????????? | | ????????????????????????????????????????????? | | ????????????????????????????????????????????? | | ????????????????????????????????????????????? | | ????????????????????????????????????????????? | +----------------------------------------------------+ Best States ------------- Heat Dissipation 47 Energy Generation 10 Energy Capacity 250 Matter Stores 300 Matter Capacity 300 Sight Range 16 Terrain Scan Density 10 Armor Coverage 800 Evasion (%) 40 Recoil Reduction 2 Item Schematics ----------------- None Robot Schematics ------------------ None Fabricated ------------ Nothing Repaired ---------- Lgt. Treads | 1% | -10/Materials Alien Tech Used ----------------- None Achievements -------------- None Challenges ------------ None Game ------ Seed GlidesysFieldShotgun Manual? 0 Play Time 00:20:39 Cumulative 88.2 hours Start 2025.10.21 @ 01:45:05 End 2025.10.21 @ 02:05:55 Sessions 1 Manual Loads 0 Difficulty Rogue Special Mode None Game No. 84 Rogue 84 Adventurer 0 Explorer 0 Win Type - Total 4 Types 4/0/0/0/0/0/0/0/0/0 Lore% 44 Gallery% 50 Achievement% 51 Wizard Run 0 Options --------- Layout 1 ASCII 0 Keyboard 0 Movement Arrows Keybinds 0 Fullscreen 1 Font 24/Smallcaps Map View 50x35 Zoom Use 0% Tactical HUD 1 Map Filters NONE Filters NONE Steam 1 RUN: 9a0a247d-6ac5-4111-bc05-782ee7d8802f